fUST/lending_fUST_20240503
["ID","MTS","AMOUNT","RATE_DAILY","PERIOD"]
[325278303,1714678407857,-500.0,0.00041369,7]
[325278304,1714678407880,-501.00267243,0.00041369,7]
[325278305,1714678407903,-500.0,0.00041369,7]
[325278306,1714678407926,-500.0,0.00041369,7]
[325278307,1714678407950,-230.0,0.00041369,7]
[325278308,1714678407976,-500.0,0.00041369,7]
[325278309,1714678408000,-500.0,0.00041369,7]
[325278310,1714678408023,-500.0,0.00041369,7]
[325278311,1714678408046,-500.0,0.00041369,7]
[325278312,1714678408070,-501.02953519,0.00041369,7]
[325278313,1714678408094,-500.0,0.00041369,7]
[325278314,1714678408119,-500.0,0.00041369,7]
[325278315,1714678408143,-151.0,0.00041369,7]
[325278316,1714678408167,-500.0,0.00041369,7]
[325278317,1714678408194,-500.0,0.00041369,7]
[325278318,1714678408217,-500.0,0.00041369,7]
[325278319,1714678408242,-500.0,0.00041369,7]
[325278320,1714678408266,-500.0,0.00041369,7]
[325278321,1714678408290,-500.0,0.00041369,7]
[325278322,1714678408313,-500.0,0.00041369,7]
[325278323,1714678408336,-500.0,0.00041369,7]
[325278324,1714678408359,-500.0,0.00041369,7]
[325278325,1714678408382,-500.0,0.00041369,30]
[325278326,1714678408405,-500.0,0.00041369,7]
[325278327,1714678408429,-486.09670969,0.00041369,7]
[325278328,1714678408453,-500.0,0.00041369,7]
[325278329,1714678408478,-500.0,0.00041369,7]
[325278330,1714678408510,-500.0,0.00041369,7]
[325278331,1714678408535,-500.0,0.00041369,7]
[325278332,1714678408560,-500.0,0.00041369,7]
[325278333,1714678408586,-500.0,0.00041369,7]
[325278334,1714678408612,-500.0,0.00041369,7]
[325278335,1714678408637,-500.0,0.00041369,7]
[325278336,1714678408729,-454.16844418,0.00041369,7]
[325278337,1714678408755,-500.0,0.00041369,7]
[325278338,1714678408778,-500.0,0.00041369,7]
[325278339,1714678408800,-500.0,0.00041369,7]
[325278340,1714678408823,-347.33130858,0.00041369,7]
[325278341,1714678408847,-500.0,0.00041369,7]
[325278342,1714678408870,-500.0,0.00041369,7]
[325278343,1714678408894,-500.0,0.00041369,7]
[325278344,1714678408918,-500.0,0.00041369,7]
[325278345,1714678408941,-500.0,0.00041369,7]
[325278346,1714678408965,-500.0,0.00041369,7]
[325278347,1714678408992,-500.0,0.00041369,7]
[325278348,1714678409019,-500.0,0.00041369,7]
[325278349,1714678409044,-500.0,0.00041369,7]
[325278350,1714678409067,-500.0,0.00041369,7]
[325278351,1714678409094,-501.47821308,0.00041369,7]
[325278352,1714678409119,-500.0,0.00041369,7]
[325278353,1714678409146,-500.0,0.00041369,7]
[325278354,1714678409171,-500.0,0.00041369,7]
[325278355,1714678409196,-572.79337958,0.00041369,7]
[325278356,1714678409221,-500.0,0.00041369,7]
[325278357,1714678409247,-500.0,0.00041369,7]
[325278358,1714678409274,-500.0,0.00041369,7]
[325278359,1714678409298,-500.0,0.00041369,7]
[325278360,1714678409323,-500.0,0.00041369,7]
[325278361,1714678409350,-500.0,0.00041369,7]
[325278362,1714678409375,-500.0,0.00041369,7]
[325278363,1714678409400,-500.0,0.00041369,7]
[325278364,1714678409424,-151.0,0.00041369,7]
[325278365,1714678409448,-500.0,0.00041369,7]
[325278366,1714678409473,-500.0,0.00041369,7]
[325278367,1714678409503,-500.0,0.00041369,7]
[325278368,1714678409530,-500.0,0.00041369,7]
[325278369,1714678409558,-500.0,0.00041369,7]
[325278370,1714678409583,-500.0,0.00041369,7]
[325278371,1714678409609,-500.0,0.00041369,7]
[325278372,1714678409634,-500.0,0.00041369,7]
[325278373,1714678409658,-500.0,0.00041369,7]
[325278374,1714678409683,-500.0,0.00041369,7]
[325278375,1714678409709,-699.78,0.00041369,7]
[325278376,1714678409733,-500.0,0.00041369,7]
[325278377,1714678409757,-500.0,0.00041369,7]
[325278378,1714678409780,-500.0,0.00041369,7]
[325278379,1714678409805,-500.0,0.00041369,7]
[325278380,1714678409830,-469.99406313,0.00041369,7]
[325278381,1714678409854,-506.44161539,0.00041369,7]
[325278382,1714678409878,-500.0,0.00041369,7]
[325278383,1714678409905,-500.0,0.00041369,7]
[325278384,1714678409929,-500.0,0.00041369,7]
[325278385,1714678410030,-500.0,0.00041369,7]
[325278386,1714678410057,-500.0,0.00041369,7]
[325278387,1714678410082,-500.0,0.00041369,7]
[325278388,1714678410108,-500.0,0.00041369,7]
[325278389,1714678410133,-500.0,0.00041369,7]
[325278390,1714678410159,-500.0,0.00041369,7]
[325278391,1714678410184,-500.0,0.00041369,7]
[325278392,1714678410209,-500.0,0.00041369,7]
[325278393,1714678410233,-500.0,0.00041369,7]
[325278394,1714678410258,-500.0,0.00041369,7]
[325278395,1714678410283,-500.0,0.00041369,7]
[325278396,1714678410309,-500.0,0.00041369,7]
[325278397,1714678410333,-451.14017617,0.00041369,7]
[325278398,1714678410357,-500.0,0.00041369,7]
[325278399,1714678410382,-500.0,0.00041369,7]
[325278400,1714678410406,-500.0,0.00041369,7]
[325278401,1714678410431,-413.34659269,0.00041369,7]
[325278402,1714678429026,-9995.33530663,0.00043981,30]
[325278403,1714678429051,-232.37848559,0.00043981,30]
[325278404,1714678429074,-40036.78294293,0.00043981,30]
[325278405,1714678429098,-22143.13964443,0.00043981,30]
[325278406,1714678429123,-10118.181,0.00043981,30]
[325278407,1714678429148,-7163.85123798,0.00043981,30]
[325278408,1714678429173,-2707.0,0.00043981,60]
[325278409,1714678429197,-5692.98867216,0.00043981,120]
[325278410,1714678429220,-182.54868207,0.00043981,120]
[325278411,1714678429245,-207.05561319,0.00043981,120]
[325278412,1714678429271,-932.0,0.00043981,30]
[325278413,1714678429296,-932.0,0.00043981,30]
[325278414,1714678429318,-932.0,0.00043981,30]
[325278415,1714678429341,-932.0,0.00043981,30]
[325278416,1714678429364,-932.0,0.00043981,30]
[325278417,1714678429387,-932.0,0.00043981,30]
[325278418,1714678429480,-932.0,0.00043981,30]
[325278419,1714678429504,-932.0,0.00043981,30]
[325278420,1714678429531,-932.0,0.00043981,30]
[325278421,1714678429555,-932.0,0.00043981,30]
[325278422,1714678429580,-932.0,0.00043981,30]
[325278423,1714678429606,-932.0,0.00043981,30]
[325278424,1714678429629,-381.76225213,0.00043981,30]
[325278425,1714678429652,-932.0,0.00043981,30]
[325278426,1714678429676,-570.40743539,0.00043981,14]
[325278427,1714678429700,-153.76761536,0.00043981,51]
[325278428,1714678429858,153.76761536,0.00043981,51]
[325278429,1714678517202,183.040438,0.00019815,2]
[325278430,1714678853785,24900.0,0.00019815,2]
[325278434,1714679249131,-1459.07186912,0.000209,2]
[325278435,1714679249152,-166.666666,0.00021918,2]
[325278436,1714679249172,-6301.0920352,0.00021918,2]
[325278437,1714679249192,-166.666666,0.00022431,2]
[325278438,1714679249213,-166.666666,0.00022944,2]
[325278439,1714679249234,-166.666666,0.00023456,2]
[325278440,1714679249256,-166.666666,0.00023969,2]
[325278441,1714679249277,-166.666666,0.00024482,2]
[325278442,1714679249298,-221.01865842,0.00028492,2]
[325278443,1714679249318,-157.383291,0.00028493,2]
[325278444,1714679249339,-158.463528,0.00028493,2]
[325278445,1714679249358,-319.0,0.00029887,3]
[325278446,1714679249378,-162.463248,0.00029948,2]
[325278447,1714679249397,-1966.77017511,0.00031967,7]
[325278448,1714679249417,-319.0,0.00031968,5]
[325278449,1714679249438,-319.0,0.00034049,5]
[325278450,1714679249458,-157.383291,0.00035274,2]
[325278451,1714679249477,-166.841489,0.00035616,120]
[325278452,1714679249497,-319.0,0.00036129,7]
[325278453,1714679249518,-158.463528,0.00037534,2]
[325278454,1714679249537,-4070.84613213,0.00037697,2]
[325278455,1714679251127,-714.43536843,0.00023,2]
[325278456,1714679251149,-555.12383229,0.00037697,2]
[325278458,1714679345122,-239.99926077,0.00020911,2]
[325278459,1714679345142,-212.35828211,0.00020912,2]
[325278460,1714679345161,-15269.43039803,0.00020913,2]
[325278461,1714679351920,788.38449079,0.00020913,2]
[325278462,1714679357099,-169.45730806,0.00020813,2]
[325278463,1714679357118,-1091.99656922,0.00020913,2]
[325278464,1714679357138,-330.1061491,0.00020913,2]
[325278465,1714679357157,-169.45730804,0.0002416,2]
[325278466,1714679361938,169.45730804,0.00027506,2]
[325278467,1714679365108,-1662.8529,0.00034,2]
[325278468,1714679365927,314.91170855,0.00020913,2]
[325278469,1714679367058,169.45730804,0.00030853,2]
[325278470,1714679369143,-3337.1471,0.00034,2]
[325278471,1714679369162,-24900.0,0.000343,2]
[325278472,1714679369182,-166.841489,0.00035795,120]
[325278473,1714679371960,169.45730804,0.000342,2]
[325278477,1714679384990,166.666666,0.00032348,2]
[325278478,1714679385227,166.666666,0.0003323,2]
[325278479,1714679385476,166.666666,0.00034111,2]
[325278480,1714679385686,166.666666,0.00034993,2]
[325278481,1714679385900,166.666666,0.00035875,2]
[325278482,1714679386109,166.666666,0.00036757,2]
[325278485,1714679406726,1017.30764189,0.00036757,4]
[325278486,1714679408953,425.7,0.00029888,3]
[325278487,1714679409603,425.7,0.00031969,5]
[325278488,1714679410212,425.7,0.00034049,5]
[325278489,1714679410801,425.7,0.0003613,7]
[325278490,1714679420529,2000.0,0.00036757,2]
[325278491,1714679420730,346.32338145,0.00036757,4]
[325278545,1714679432486,-959.8939691,0.00037357,2]
[325278547,1714679432495,-1966.77017511,0.00037523,7]
[325278549,1714679432504,-169.45730804,0.00037546,2]
[325278551,1714679432514,-1639.06858957,0.00037697,2]
[325278553,1714679432523,-154.87542473,0.00037697,4]
[325278555,1714679432532,-31003.14960249,0.00037697,60]
[325278557,1714679432541,-425.7,0.00038211,14]
[325278566,1714679432620,-5000.0,0.00039271,4]
[325278568,1714679432630,-493.0,0.00039272,2]
[325278570,1714679432639,-150.0,0.00039272,2]
[325278572,1714679432648,-150.161,0.00039272,2]
[325278574,1714679432658,-153.0,0.00039589,2]
[325278576,1714679432666,-303.86860129,0.0004,15]
[325278578,1714679432675,-2729.9056,0.0004,4]
[325278580,1714679432684,-4256.07544867,0.00040028,4]
[325278582,1714679432693,-549.92372763,0.0004003,2]
[325278584,1714679432702,-601.39156,0.0004029,2]
[325278586,1714679432711,-425.7,0.00040292,14]
[325278588,1714679432719,-153.0,0.00040383,2]
[325278590,1714679432728,-153.0,0.00040383,2]
[325278592,1714679432737,-309.9275331,0.00040383,2]
[325278594,1714679432747,-153.4551898,0.00040442,2]
[325278596,1714679432757,-153.0,0.00040442,2]
[325278598,1714679432766,-153.0,0.00040442,2]
[325278600,1714679432779,-153.0,0.00040442,2]
[325278602,1714679432788,-156.16643297,0.00040684,3]
[325278604,1714679432797,-296.3719,0.0004077,30]
[325278606,1714679432807,-601.39156,0.00040802,2]
[325278608,1714679432816,-176.52463161,0.00040893,2]
[325278610,1714679432825,-169.45730804,0.00040893,2]
[325278612,1714679432834,-176.52463159,0.00040944,2]
[325278614,1714679432843,-298.44,0.00040973,3]
[325278616,1714679432857,-248.7,0.00040973,3]
[325278618,1714679432867,-335.37,0.00040973,3]
[325278620,1714679432877,-167.69,0.00040973,3]
[325278622,1714679432886,-11960.51552588,0.00040983,7]
[325278624,1714679432896,-8591.81,0.00040983,3]
[325278626,1714679432905,-7159.84,0.00040983,3]
[325278628,1714679432915,-5966.53,0.00040983,3]
[325278631,1714679432924,-2787.5156815,0.00040983,3]
[325278662,1714679433213,15678.27203672,0.00020913,2]
[325278972,1714679436519,2000.0,0.00036757,2]
[325279195,1714679438634,-167.69,0.00040985,3]
[325279197,1714679438642,-212.06473086,0.00040991,4]
[325279199,1714679438651,-27.03385639,0.00040991,4]
[325279201,1714679438664,-430.52213593,0.00040991,4]
[325279203,1714679438674,-307.84522161,0.00040991,4]
[325279205,1714679438683,-1259.41388857,0.00040991,4]
[325279207,1714679438692,-632.34120553,0.00040991,4]
[325279209,1714679438701,-411.51217398,0.00040991,4]
[325279211,1714679438710,-154.94561711,0.00040991,4]
[325279213,1714679438720,-331.29740705,0.00040991,4]
[325279215,1714679438730,-163.55932219,0.00040991,4]
[325279217,1714679438739,-219.61097658,0.00040991,4]
[325279219,1714679438749,-156.3097437,0.00040991,4]
[325279221,1714679438762,-1258.30613601,0.00040991,2]
[325279223,1714679438771,-265.7399121,0.00040991,4]
[325279225,1714679438780,-1416.54735772,0.00040992,4]
[325279227,1714679438790,-468.28300576,0.00040993,4]
[325279229,1714679438800,-162.25127864,0.00040993,4]
[325279231,1714679438810,-3052.13238877,0.00040993,4]
[325279233,1714679438819,-459.18231582,0.00040993,4]
[325279235,1714679438829,-284.0133868,0.00040993,4]
[325279237,1714679438838,-522.27929623,0.00040993,4]
[325279239,1714679438848,-2710.77064883,0.00040993,4]
[325279241,1714679438857,-5462.53125909,0.00040993,4]
[325279243,1714679438869,-1739.48548083,0.00040993,4]
[325279245,1714679438878,-508.91365282,0.00040993,4]
[325279747,1714679443625,-5670.6,0.00040985,3]
[325279749,1714679443635,-539.27325074,0.00040993,4]
[325279751,1714679443644,-1313.56424433,0.00040993,4]
[325279753,1714679443654,-20184.60218086,0.00040993,4]
[325279757,1714679443680,-2391.0,0.00040993,4]
[325280554,1714679454463,2000.0,0.00036757,2]
[325281027,1714679459222,166.666666,0.00036757,2]
[325281438,1714679463571,2832.84741246,0.000297,9]
[325281454,1714679465310,5399.47396844,0.0001,2]
[325281455,1714679465330,4600.52603156,0.0001,2]
[325281477,1714679466700,10000.0,0.0001,2]
[325281775,1714679501117,354.64628884,0.00020913,2]
[325281776,1714679501209,154.73694719,9.999e-05,2]
[325281777,1714679513930,981.99841714,9.999e-05,2]
[325281780,1714679525314,159.27807126,0.00022,2]
[325281781,1714679551968,500.0,0.00019451,2]
[325281782,1714679552018,500.0,0.00019451,2]
[325281783,1714679552070,347.5,0.00019451,2]
[325281785,1714679603108,463.02233791,0.0002,10]
[325281787,1714679639793,20844.2223323,0.0002,2]
[325281790,1714679688086,9683.60426596,0.0002,2]
[325281800,1714680152572,404.25,0.0001945,2]
[325281801,1714680154407,5000.0,0.000199,3]
[325281806,1714680476244,642.34120822,0.000189,2]
[325281810,1714680510043,183.040438,0.00019957,2]
[325281818,1714680562288,2662.2428234,0.00019957,2]
[325281819,1714680573118,-200.0,0.00020228,2]
[325281820,1714680573139,-164.40785177,0.000209,2]
[325281821,1714680573158,-20860.49279874,0.00020913,2]
[325281822,1714680573179,-2612.41931595,0.00021,7]
[325281823,1714680573198,-3387.72625463,0.00021,2]
[325281824,1714680573217,-166.666666,0.00021918,2]
[325281825,1714680573236,-191.62094884,0.00022,2]
[325281826,1714680573254,-154.65974755,0.000223,2]
[325281827,1714680573272,-166.666666,0.00022431,2]
[325281828,1714680573290,-166.666666,0.00022944,2]
[325281829,1714680573307,-714.43536843,0.00023,2]
[325281830,1714680573326,-24900.0,0.00023014,2]
[325281831,1714680573344,-385.64668257,0.00023058,2]
[325281832,1714680573363,-176.52463159,0.00023158,2]
[325281833,1714680573381,-10000.0,0.00023411,2]
[325281834,1714680573399,-166.666666,0.00023456,2]
[325281835,1714680573418,-642.34120822,0.000239,2]
[325281836,1714680573436,-166.666666,0.00023969,2]
[325281837,1714680573572,-459.75,0.00024373,3]
[325281838,1714680573592,-166.666666,0.00024482,2]
[325281839,1714680573611,-306.48,0.0002499,3]
[325281840,1714680573629,-153.24,0.0002499,3]
[325281841,1714680573647,-757.16754489,0.00025,2]
[325281842,1714680573665,-154.76784823,0.00025,2]
[325281843,1714680573683,-612.96,0.0002636,3]
[325281844,1714680573701,-306.48,0.0002636,3]
[325281845,1714680573720,-2000.0,0.000266,2]
[325281846,1714680573738,-2000.0,0.000266,2]
[325281847,1714680573760,-2000.0,0.000266,2]
[325281848,1714680573781,-160.933884,0.00027147,2]
[325281849,1714680573799,-197.83067739,0.000274,2]
[325281850,1714680573817,-6006.59354659,0.000275,2]
[325281851,1714680573836,-620.00000039,0.00028382,2]
[325281852,1714680573855,-358.807914,0.00028493,2]
[325281853,1714680573875,-161.494678,0.00028493,2]
[325281854,1714680573894,-646.5,0.00029822,3]
[325281855,1714680573913,-5126.06298174,0.0002987,30]
[325281856,1714680573931,-183.040438,0.00029935,2]
[325281857,1714680573950,-245.0,0.0003,2]
[325281858,1714680573971,-1966.77017511,0.00031372,7]
[325281859,1714680573989,-646.5,0.00031373,3]
[325281860,1714680574008,-385.64668255,0.00031478,2]
[325281864,1714680610727,538.7,0.00029842,3]
[325281865,1714680611421,538.7,0.00031391,3]
[325281866,1714680614954,757.16754489,0.00025,2]
[325281867,1714680629146,2000.0,0.00031478,2]
[325281883,1714680631790,-538.7,0.0003294,5]
[325281884,1714680631801,-201.04097325,0.00032989,4]
[325281885,1714680631813,-375.96627399,0.00032998,4]
[325281886,1714680631823,-2351.38837485,0.00032999,4]
[325281887,1714680631832,-7034.66198476,0.00033,2]
[325281888,1714680631842,-466.5950793,0.00034,4]
[325281889,1714680631852,-358.807914,0.00034203,2]
[325281890,1714680631863,-538.7,0.00034488,5]
[325281891,1714680631872,-1272.15156012,0.00034728,12]
[325281892,1714680631880,-164.40785177,0.000348,2]
[325281893,1714680631891,-2151.16096719,0.00034899,4]
[325281894,1714680631899,-13720.27220471,0.000349,2]
[325281895,1714680631909,-1159.01222463,0.00035,4]
[325281896,1714680631918,-592.285651,0.00035616,120]
[325281897,1714680631926,-538.7,0.00036037,7]
[325281898,1714680631936,-538.7,0.00037586,14]
[325281899,1714680631944,-5661.39730469,0.00038074,4]
[325281900,1714680631953,-154.73694719,0.00038075,4]
[325281901,1714680631962,-22658.8364,0.00038078,30]
[325281902,1714680631972,-404.23773768,0.00038356,2]
[325281903,1714680631981,-8802.21,0.0003898,3]
[325281904,1714680631990,-5000.0,0.00039,4]
[325281905,1714680631999,-5000.0,0.00039,60]
[325281906,1714680632008,-538.7,0.00039135,14]
[325281907,1714680632017,-150.71364408,0.00039173,2]
[325281908,1714680632026,-150.0,0.00039272,2]
[325281909,1714680632035,-493.0,0.00039272,2]
[325281910,1714680632044,-150.0,0.00039272,2]
[325281911,1714680632053,-153.0,0.0003962,2]
[325281912,1714680632064,-153.0,0.0003962,2]
[325281913,1714680632073,-153.0,0.0003962,2]
[325281914,1714680632082,-306.0,0.0003962,2]
[325281915,1714680632091,-153.0,0.0003962,2]
[325281916,1714680632104,-153.0,0.0003962,2]
[325281917,1714680632115,-153.0,0.0003962,2]
[325281918,1714680632128,-153.0,0.0003962,2]
[325281919,1714680632148,-601.39156,0.0003963,2]
[325281920,1714680632163,-301.42728815,0.00039831,4]
[325281921,1714680632181,-385.64668255,0.00039897,2]
[325281922,1714680632200,-2000.0,0.000399,2]
[325281923,1714680632219,-358.807914,0.00039913,2]
[325281924,1714680632236,-10671.4,0.00039977,3]
[325281925,1714680632256,-9498.96643605,0.00039986,3]
[325281926,1714680634873,665.25500013,0.00031478,4]
[325281981,1714680639958,-42750.86940191,0.00039995,4]
[325281983,1714680639967,-959.8939691,0.00039996,2]
[325281985,1714680639976,-1465.17908464,0.00039996,7]
[325281987,1714680639985,-173.25,0.00039996,31]
[325281989,1714680639995,-48263.23585955,0.00039997,7]
[325281991,1714680640004,-7794.08111854,0.00039997,14]
[325281993,1714680640013,-154.7215013,0.00039997,4]
[325281995,1714680640023,-2397.64924423,0.00039998,4]
[325281997,1714680640031,-3767.48,0.00039999,2]
[325281999,1714680640041,-3767.48,0.00039999,2]
[325282001,1714680640051,-3767.48,0.00039999,2]
[325282003,1714680640060,-3767.48,0.00039999,2]
[325282005,1714680640070,-3767.48,0.00039999,2]
[325282007,1714680640079,-3767.48,0.00039999,2]
[325282009,1714680640088,-3767.48,0.00039999,2]
[325282011,1714680640097,-3767.48,0.00039999,2]
[325282013,1714680640110,-3767.48,0.00039999,2]
[325282015,1714680640119,-3767.48,0.00039999,2]
[325282017,1714680640128,-999.0,0.00039999,7]
[325282019,1714680640137,-320.75262842,0.00039999,10]
[325282021,1714680640147,-154.78330338,0.0004,15]
[325282023,1714680640156,-4256.07544867,0.0004,4]
[325282025,1714680640165,-19135.87880623,0.0004,30]
[325282276,1714680642924,-1158.42215844,0.00039987,3]
[325282289,1714680651469,747.68051297,0.00031478,2]
[325282290,1714680662903,521.00646722,0.00020913,2]
[325282291,1714680711557,2627.42239968,0.00020913,2]
[325282292,1714680725721,683.5156754,9.999e-05,2]
[325282293,1714681196597,203.85845913,0.0001,2]
[325282294,1714681291069,212.35828211,9.999e-05,2]
[325282296,1714681321632,24900.0,0.00019831,2]
[325282300,1714681495553,1622.34234505,9.999e-05,2]
[325282301,1714681526628,16108.00888911,0.00019831,2]
[325282302,1714681546382,290.65375248,0.00019831,2]
[325282303,1714681581493,11978.80518424,0.00019831,2]
[325282304,1714681592019,933.054747,0.00019707,2]
[325282305,1714681636009,164.15031507,9.999e-05,2]
[325282306,1714681639348,527.05896574,9.999e-05,2]
[325282307,1714681648497,475.3846747,9.999e-05,2]
[325282308,1714681686578,2443.65853584,0.000189,2]
[325282309,1714681691560,1589.67863708,9.999e-05,2]
[325282310,1714681745523,521.00646722,9.999e-05,2]
[325282311,1714681746387,532.37819785,9.999e-05,2]
[325282312,1714681747139,-10250.12872057,0.00020634,2]
[325282313,1714681750682,1453.4846884,0.00015,2]
[325282314,1714681750755,1378.80011313,9.999e-05,2]
[325282315,1714681755295,412.33320126,9.999e-05,2]
[325282316,1714681760126,-1622.34234505,0.00020633,2]
[325282317,1714681760147,-5428.14331615,0.00020634,2]
[325282318,1714681760168,-1230.56878181,0.00020634,2]
[325282319,1714681762305,-66217.23136453,0.00020634,2]
[325282320,1714681762324,-5462.53125909,0.00020635,2]
[325282321,1714681762343,-939.76545707,0.00020635,2]
[325282322,1714681762361,-511.77435511,0.00020635,2]
[325282323,1714681762383,-1091.78088148,0.00020635,2]
[325282324,1714681762404,-154.84515485,0.00020635,2]
[325282325,1714681762422,-700.80098133,0.00020635,2]
[325282326,1714681762440,-351.74166432,0.00020635,2]
[325282327,1714681762459,-154.79876161,0.00020636,2]
[325282328,1714681762477,-1880.38106001,0.00020636,2]
[325282329,1714681762500,-1313.56424433,0.00020636,2]
[325282330,1714681762518,-163.94984178,0.00020639,2]
[325282331,1714681762537,-475.3846747,0.00020639,2]
[325282332,1714681762556,-526.7646238,0.0002064,2]
[325282333,1714681762576,-5344.28488687,0.00020644,2]
[325282334,1714681762594,-162.50640628,0.00020649,2]
[325282335,1714681762614,-251.15,0.00020904,3]
[325282336,1714681762633,-209.29,0.00020904,3]
[325282337,1714681762652,-627.91,0.00020904,3]
[325282338,1714681762671,-162.463248,0.00021735,2]
[325282339,1714681762690,-2192.0443672,0.00021818,2]
[325282340,1714681762709,-166.666666,0.00021918,2]
[325282341,1714681762728,-10000.0,0.00021918,2]
[325282342,1714681762747,-2000.0,0.00022,2]
[325282343,1714681762766,-191.62094884,0.00022,2]
[325282344,1714681762787,-159.27807126,0.00022,2]
[325282345,1714681762807,-418.58,0.00022274,3]
[325282346,1714681762826,-166.666666,0.00022431,2]
[325282347,1714681762845,-166.666666,0.00022944,2]
[325282348,1714681762864,-623.49263547,0.00023408,2]
[325282349,1714681762883,-166.666666,0.00023456,2]
[325282350,1714681762902,-2443.65853584,0.000239,2]
[325282351,1714681762921,-166.666666,0.00023969,2]
[325282352,1714681762940,-693.7301281,0.00024,2]
[325282353,1714681762960,-166.666666,0.00024482,2]
[325282354,1714681762979,-620.17463177,0.00024578,2]
[325282355,1714681762997,-380.0,0.00024658,2]
[325282356,1714681763016,-200.0,0.00024658,2]
[325282357,1714681763035,-260.140097,0.00025,2]
[325282358,1714681763054,-620.00873159,0.00025807,2]
[325282359,1714681763073,-2192.04436717,0.00026216,2]
[325282360,1714681763091,-9380.01685072,0.00027,2]
[325282361,1714681763111,-8532.81812051,0.00027,2]
[325282362,1714681763129,-620.00043658,0.00027098,2]
[325282363,1714681763148,-160.0,0.0002715,2]
[325282364,1714681763166,-150.0,0.00027512,4]
[325282365,1714681763184,-320.0,0.00027698,2]
[325282366,1714681763204,-221.01865842,0.00028245,2]
[325282367,1714681763223,-321.73741113,0.00028246,2]
[325282368,1714681763242,-620.00002183,0.00028453,2]
[325282369,1714681763260,-276.083705,0.00028493,2]
[325282370,1714681763282,-157.383291,0.00028493,2]
[325282371,1714681763301,-2443.65853584,0.000289,2]
[325282372,1714681763413,-933.054747,0.00029561,2]
[325282373,1714681763435,-620.00000109,0.00029875,2]
[325282374,1714681763455,-521.5,0.00029885,3]
[325282375,1714681763480,-285.0,0.0003,2]
[325282376,1714681763504,-1966.77017511,0.0003,7]
[325282377,1714681763524,-2192.04436717,0.00030615,2]
[325282378,1714681763545,-4270.8230431,0.00031,4]
[325282379,1714681763564,-620.00000005,0.00031369,2]
[325282380,1714681763597,-521.5,0.0003143,3]
[325282381,1714681763618,-447.32492958,0.00032,4]
[325282382,1714681763638,-521.5,0.00032975,5]
[325282383,1714681763658,-466.5950793,0.00034,4]
[325282384,1714681763682,-276.083705,0.00034203,2]
[325282385,1714681763703,-521.5,0.0003452,5]
[325282386,1714681763723,-1159.01222463,0.00035,4]
[325282387,1714681763745,-2192.04436717,0.00035013,2]
[325282388,1714681763770,-444.214238,0.00035616,120]
[325282389,1714681763795,-521.5,0.00036065,7]
[325282390,1714681763818,-157.383291,0.00036243,2]
[325282391,1714681763838,-5000.0,0.00036741,2]
[325282392,1714681763938,714.43536843,0.00023,2]
[325282393,1714681764794,665.88746709,0.00020635,2]
[325282394,1714681767346,13975.81,0.00035003,3]
[325282395,1714681767833,2151.16096719,0.00020913,2]
[325282396,1714681769293,412.33320126,0.00020913,2]
[325282397,1714681775306,2000.0,0.00022,2]
[325282398,1714681775355,1159.01222463,0.00035,4]
[325282399,1714681782849,981.99841714,0.00020913,2]
[325282400,1714681793302,2000.0,0.00022,2]
[325282401,1714681793345,5998.06874937,0.0002054,2]
[325282402,1714681799368,1159.01222463,0.00035,4]
[325282405,1714681808315,1141.48926615,0.00023408,2]
[325282406,1714681809473,646.07446331,0.00024578,2]